[Event "Israeli Team U18-ch 2022"]
[Site "Be'er Ya'akov"]
[Date "2022.08.15"]
[Round "4.9"]
[White "Zemach, Nadav"]
[Black "Ribstein, Orel"]
[Result "1/2-1/2"]
[ECO "E66"]
[WhiteElo "2225"]
[BlackElo "1964"]
[Annotator "TA"]
[PlyCount "138"]
[EventDate "2022.08.14"]
[EventCountry "ISR"]
[SourceTitle "playchess.com"]
[Source "ChessBase"]
[SourceQuality "1"]
[TimeControl "3000+10"]

{[%evp 23,138,14,20,9,20,28,33,29,59,23,80,17,77,-15,-13,-129,-125,-143,-125,-125,-112,-106,-125,-130,-141,-135,-40,-258,-172,-218,-135,-210,-85,-81,-77,-81,-83,-73,-35,-34,-25,-54,0,0,0,0,0,-2,-4,-7,0,-8,0,0,0,-4,0,0,0,0,0,0,0,-25,0,-5,0,0,0,0,0,0,0,0,0,0,0,0,28,28,28,13,13,13,13,0,8,0,0,0,0,0,56,56,61,51,51,51,84,84,91,84,91,91,863,84,84,0,464,439,1014,848,508,8,8,8,8]} 1. Nf3 {[%emt 0:00:02]} g6 {[%emt 0:00:38]} 2. g3 {[%emt 0:00:04]} Bg7 {[%emt 0:00:29]} 3. Bg2 {[%emt 0:00:15]} Nf6 {[%emt 0:00:15]} 4. O-O {[%emt 0:00:05]} O-O {[%emt 0:00:11]} 5. c4 {[%emt 0:50:34]} d6 {[%emt 0:00:25]} 6. d4 {[%emt 0:00:00]} c5 {[%emt 0:00:33]} 7. Nc3 {[%emt 0:00:00]} Nc6 {[%emt 0:01:34]} 8. d5 {[%emt 0:00:00]} Na5 {[%emt 0:00:15]} 9. Nd2 {[%emt 0:00:00]} a6 {[%emt 0:00:16]} 10. Qc2 {[%emt 0:00:00]} Rb8 {[%emt 0:00:50]} 11. b3 {[%emt 0:00:00]} b5 {[%emt 0:00:58]} 12. Bb2 {[%emt 0:00:00]} e6 {[%emt 0:02:05]} 13. e4 {[%emt 0:00:00] E66: King's Indian: Fianchetto: 6...c5 7 0-0 Nc6 8 d5.} bxc4 {[%emt 0:01:48]} 14. bxc4 {[%emt 0:00:00]} exd5 {[%emt 0:00:27]} 15. cxd5 {[%emt 0:00:00] White is slightly better.} Re8 {[%emt 0:02:53]} 16. h3 {[%emt 0:00:00]} Nd7 {[%emt 0:39:13] [#]} (16... Bd7 $11) 17. Rfe1 $146 {[%emt 0:02:00]} (17. Rab1 $16) ({Predecessor:} 17. Nd1 Bxb2 18. Nxb2 Qf6 19. Rab1 Rb4 20. Nbc4 Nxc4 21. Nxc4 Rxb1 22. Rxb1 Ne5 23. Qc3 {1-0 (38) Luciani,V (2238)-Tomba,I (2063) Gubbio 1999}) 17... Ne5 {[%emt 0:00:00]} (17... Bd4 $11) 18. Bf1 {[%emt 0:00:10]} (18. Nd1 $1 $16) 18... Qg5 $11 {[%emt 0:00:20][%cal Og5d2]} 19. Re3 {[%emt 0:00:10] [#]} (19. Bc1 $1 $11) 19... Bxh3 $1 $17 {[%emt 0:00:00][%mdl 512]} 20. Bxh3 {[%emt 0:00:00] [#]} Rxb2 $1 {[%emt 0:00:00][%mdl 512]} 21. Qxb2 {[%emt 0:00:00]} Nac4 $36 {[%emt 0:00:00][%mdl 2048] Prevents Qa3. Black is really pushing.} 22. Nxc4 {[%emt 0:00:00]} Nxc4 {[%emt 0:00:00]} 23. Qc1 {[%emt 0:00:00]} ({But not} 23. f4 $2 Qh6 24. Qh2 Nxe3 $19) 23... Nxe3 {[%emt 0:00:00]} 24. Rb1 {[%emt 0:00:00]} Qe5 {[%emt 0:00:00]} (24... Qh5 $17 {[%cal Og7d4] And now ...Bd4! would win.} 25. Qxe3 Qxh3) 25. Ne2 {[%emt 0:00:00]} ({Better is} 25. Bd7 $15 Rd8 26. Qxe3) 25... Nxd5 {[%emt 0:00:00]} 26. Bg2 {[%emt 0:00:00]} (26. Bd7 $142 Rd8 27. Qc4) 26... Nb4 {[%emt 0:00:00]} 27. Qc4 {[%emt 0:00:00]} (27. a3 $17 {was necessary.} Nd5 28. Qc4) 27... Qe6 {[%emt 0:00:08]} (27... d5 $1 $19 {[%cal Rd5c4] and Black stays clearly on top.} 28. Qxc5 Bf8) 28. Qxe6 {[%emt 0:00:00]} fxe6 {[%emt 0:00:29]} 29. a3 {[%emt 0:00:00]} Nc2 {[%emt 0:00:14]} 30. Rb6 {[%emt 0:00:00][%csl LRa6,LRd6]} Nxa3 {[%emt 0:00:30]} 31. Rxd6 {[%emt 0:00:00]} Nc2 {[%emt 0:00:32]} 32. Bh3 {[%emt 0:00:00]} Nd4 {[%emt 0:00:10]} (32... Kf7 $15) 33. Nxd4 $11 {[%emt 0:00:00]} Bxd4 {[%emt 0:00:06]} 34. Bxe6+ {[%emt 0:00:00][%mdl 4096] Endgame KRB-KRB} Kg7 {[%emt 0:00:07]} 35. Rxa6 {[%emt 0:00:00]} Rf8 {[%emt 0:00:10]} 36. Ra7+ {[%emt 0:00:00]} Kh6 {[%emt 0:00:03]} 37. Rf7 {[%emt 0:00:00]} Rb8 {[%emt 0:00:25]} 38. Kg2 {[%emt 0:00:00]} Rb2 {[%emt 0:00:03]} 39. g4 {[%emt 0:00:00]} Rc2 {[%emt 0:00:05]} 40. Kg3 {[%emt 0:00:00][%cal Oe4e5]} Rc3+ {[%emt 0:00:18]} 41. Kg2 {[%emt 0:00:00]} Rc2 {[%emt 0:00:01]} 42. Kg3 {[%emt 0:00:03]} Rc3+ {[%emt 0:00:01]} 43. f3 {[%emt 0:00:01]} Bg1 {[%emt 0:00:35]} 44. Rd7 {[%emt 0:00:13]} Be3 {[%emt 0:00:11]} 45. Bg8 {[%emt 0:00:02]} Kg5 {[%emt 0:00:02]} 46. Rd5+ {[%emt 0:00:24]} ({Reject} 46. Rxh7 Bf4+ 47. Kg2 c4 $17) 46... Kh6 {[%emt 0:00:06]} 47. e5 {[%emt 0:01:30]} Rc1 {[%emt 0:00:19]} 48. e6 {[%emt 0:00:10] Re5 is the strong threat.} Rg1+ {[%emt 0:00:13]} 49. Kh2 {[%emt 0:00:02] Black must now prevent Re5.} Re1 {[%emt 0:00:05]} 50. Rd7 {[%emt 0:00:05]} Bf4+ {[%emt 0:00:11]} 51. Kg2 $1 {[%emt 0:00:02] Hoping for e7.} Kg5 {[%emt 0:00:15]} 52. Rd5+ {[%emt 0:00:26]} Kf6 {[%emt 0:00:05]} 53. Rxc5 {[%emt 0:00:04]} h6 {[%emt 0:00:07]} 54. Bf7 {[%emt 0:00:11]} Rd1 {[%emt 0:00:06]} 55. Rc8 {[%emt 0:00:27][%cal Of7g6]} Rd2+ {[%emt 0:00:01]} 56. Kf1 {[%emt 0:00:02]} Rd1+ {[%emt 0:00:16]} 57. Ke2 {[%emt 0:00:01]} Rc1 {[%emt 0:00:13]} (57... Rd2+ $11 58. Ke1 Rd3) 58. Rg8 $14 {[%emt 0:00:07]} g5 {[%emt 0:00:21]} 59. Rg6+ {[%emt 0:00:02]} Ke7 {[%emt 0:00:03]} 60. Rxh6 {[%emt 0:00:01]} Rc2+ {[%emt 0:00:06]} 61. Kd3 {[%emt 0:00:32]} Ra2 {[%emt 0:00:16]} 62. Rh7 {[%emt 0:00:21]} Ra3+ {[%emt 0:00:10]} 63. Ke4 {[%emt 0:00:09]} Re3+ $2 {[%emt 0:00:02][%mdl 8192] [#]} (63... Ra5 $16) 64. Kd5 $2 {[%emt 0:00:27]} (64. Kf5 $1 $18) 64... Rd3+ {[%emt 0:00:05]} 65. Ke4 $2 {[%emt 0:00:52][%mdl 8192]} (65. Kc5 $16 {aiming for Bg6+.} Rxf3 66. Bg8+ Ke8 67. Rh8) 65... Re3+ $18 {[%emt 0:00:01] [#]} 66. Kf5 $1 {[%emt 0:00:00]} Rxf3 {[%emt 0:00:01]} (66... Kd6 $142 67. Rh8 Rxf3) 67. Bh5+ {[%emt 0:00:12]} Kd6 {[%emt 0:00:27]} 68. e7 $2 {[%emt 0:00:21]} ({Only move:} 68. Rd7+ $18 Kc6 69. Be8 (69. e7 $2 Bc1+ 70. Ke6 Re3+ 71. Kf5 Kxd7 $19) 69... Bd6+ 70. Kxg5) 68... Bc1+ $11 {[%emt 0:00:06]} 69. Kg6 {[%emt 0:00:17]} Re3 {[%emt 0:00:00] White used his chance.  Weighted Error Value: White=0.25 (precise) /Black=0.20 (precise)} 1/2-1/2

[Event "Israeli Team U18-ch 2022"]
[Site "Be'er Ya'akov"]
[Date "2022.08.15"]
[Round "4.10"]
[White "Tashkinova, Sofiia"]
[Black "Vagman, Roy"]
[Result "0-1"]
[ECO "C54"]
[WhiteElo "1935"]
[BlackElo "2180"]
[Annotator "TA"]
[PlyCount "84"]
[EventDate "2022.08.14"]
[EventCountry "ISR"]
[SourceTitle "playchess.com"]
[Source "ChessBase"]
[SourceQuality "1"]
[TimeControl "3000+10"]

{[%evp 12,84,28,-16,-10,-13,-8,-15,-15,-10,0,0,0,-2,49,13,17,8,15,2,306,0,0,0,0,-45,-10,-44,-34,-139,-101,-108,-114,-124,-123,-195,-209,-234,-232,-249,-245,-252,-176,-185,-182,-179,-175,-185,-177,-175,-173,-232,-244,-288,-286,-556,-286,-431,-322,-744,-720,-1553,-1572,-1862,-1744,-2043,-1952,-2102,-2962,-2511,-2386,-5883,-5497,-29991,-29992]} 1. e4 {[%emt 0:00:01]} e5 {[%emt 0:00:10]} 2. Nf3 {[%emt 0:00:06]} Nc6 {[%emt 0:00:04]} 3. Bc4 {[%emt 0:00:08]} Bc5 {[%emt 0:00:06]} 4. d3 {[%emt 0:00:07]} Nf6 {[%emt 0:00:06]} 5. O-O {[%emt 0:00:25]} d6 {[%emt 0:00:45]} 6. c3 {[%emt 0:00:12]} h6 {[%emt 0:01:24]} 7. Be3 {[%emt 0:00:33]} Bxe3 {[%emt 0:02:08] C54: Giuoco Piano: 4 c3 Nf6, main lines with 5 d4 and 5 d3.} 8. fxe3 {[%emt 0:00:25]} Na5 {[%emt 0:01:36]} 9. Bb5+ {[%emt 0:04:05]} c6 {[%emt 0:00:17] The position is equal.} 10. Ba4 {[%emt 0:00:13]} b5 {[%emt 0:00:05] Prevents c4.} 11. Bc2 {[%emt 0:00:31]} Qb6 {[%emt 0:00:22] [#] aiming for ...Ng4.} 12. Qe2 $146 {[%emt 0:06:04]} ({Predecessor:} 12. Qd2 Nb7 13. Qf2 Ng4 14. Qe2 Qxe3+ 15. Qxe3 Nxe3 16. Rf2 Nxc2 17. Rxc2 f5 18. Nbd2 {0-1 (50) Fritsch Gruendel,T-Lenhart,M freechess.de 2016}) 12... b4 {[%emt 0:01:07]} (12... c5 $11) 13. c4 {[%emt 0:07:26]} O-O {[%emt 0:03:58]} 14. Nbd2 {[%emt 0:02:36]} Be6 {[%emt 0:02:18]} 15. Nh4 {[%emt 0:03:46][%cal Of1f6]} d5 $2 {[%emt 0:04:41][%mdl 8192] [#]} (15... Nd7 $11 {and Black has nothing to worry.}) 16. Nf5 $2 {[%emt 0:06:26]} (16. Rxf6 $1 $18 {[%mdl 512]} gxf6 17. exd5 cxd5 18. cxd5) 16... Bxf5 $11 {[%emt 0:02:09]} 17. Rxf5 {[%emt 0:03:30]} dxc4 {[%emt 0:02:05]} 18. dxc4 {[%emt 0:04:01][%cal Of5f6]} (18. Rxf6 $5 cxd3 19. Bxd3 gxf6 20. Nc4 Nxc4 21. Bxc4 $17) 18... Rfe8 {[%emt 0:01:28]} 19. Raf1 {[%emt 0:00:50]} (19. Rxf6 $5 gxf6 20. Nf1 $11) 19... Re6 {[%emt 0:00:40]} 20. Bb3 {[%emt 0:02:09]} (20. Nf3 $15 Ng4 21. c5 Qxc5 22. Nd4) 20... Qc5 {[%emt 0:03:01]} 21. Bc2 {[%emt 0:05:32]} Rd8 {[%emt 0:01:50]} 22. Nb3 {[%emt 0:01:33]} Qxc4 {[%emt 0:06:46] Black is more active.} 23. Qf2 {[%emt 0:00:33]} (23. R5f2 $17 {is a better defense.} Qxe2 24. Rxe2) 23... Nb7 $19 {[%emt 0:00:18][%cal Ba5b7,Bb7d6,Bd6c4][%mdl 32]} 24. Bb1 {[%emt 0:01:14]} Nd6 {[%emt 0:02:23]} 25. Nd2 {[%emt 0:00:43]} Qb5 {[%emt 0:00:46]} 26. Rf3 {[%emt 0:00:15]} Nc4 {[%emt 0:01:00]} 27. Nxc4 {[%emt 0:00:16]} Qxc4 {[%emt 0:00:02]} 28. Qg3 {[%emt 0:00:20]} Rdd6 {[%emt 0:00:31]} 29. Rf5 {[%emt 0:00:11]} Qe2 {[%emt 0:02:23]} 30. R5f2 {[%emt 0:00:16]} Qb5 {[%emt 0:01:27]} 31. Bc2 {[%emt 0:00:15]} (31. b3 {was called for.}) 31... c5 {[%emt 0:00:22][%cal Bc6c5,Bc5c4][%mdl 32]} 32. Rf5 {[%emt 0:00:27]} c4 {[%emt 0:00:51]} 33. Qf3 $2 {[%emt 0:00:11]} (33. Qe1) 33... Kf8 {[%emt 0:00:40]} 34. Rd1 {[%emt 0:00:11]} (34. Qe2 $142) 34... Qc5 {[%emt 0:01:35] ...g6 is the strong threat.} 35. Re1 $2 {[%emt 0:00:08]} (35. Rd5 Qb6 36. Rxd6 Rxd6 37. Qe2) 35... g6 {[%emt 0:00:32]} 36. Rxf6 {[%emt 0:00:02]} Rxf6 {[%emt 0:00:09]} 37. Qh3 {[%emt 0:00:15]} Kg7 {[%emt 0:00:13]} 38. Qg3 {[%emt 0:00:12]} Rd2 {[%emt 0:00:33]} 39. Bd1 {[%emt 0:00:03]} c3 {[%emt 0:00:08]} 40. bxc3 {[%emt 0:00:17]} bxc3 {[%emt 0:00:07] White must now prevent ...c2.} 41. Bb3 {[%emt 0:00:02]} c2 {[%emt 0:00:38]} 42. h4 {[%emt 0:00:14]} c1=Q {[%emt 0:00:26] Weighted Error Value: White=1.18/Black=0.37} 0-1

[Event "Israeli Team U18-ch 2022"]
[Site "Be'er Ya'akov"]
[Date "2022.08.15"]
[Round "4.11"]
[White "Ater, Yuval"]
[Black "Azoulay, Yehonatan"]
[Result "1-0"]
[ECO "B26"]
[WhiteElo "1854"]
[BlackElo "1805"]
[Annotator "NA RC"]
[PlyCount "75"]
[EventDate "2022.08.14"]
[EventCountry "ISR"]
[SourceTitle "playchess.com"]
[Source "ChessBase"]
[SourceQuality "1"]
[TimeControl "3000+10"]

1. e4 {[%emt 0:00:02]} c5 {[%emt 0:00:03]} 2. Nc3 {[%emt 0:00:05]} Nc6 {[%emt 0:00:13]} 3. g3 {[%emt 0:00:04]} g6 {[%emt 0:00:05]} 4. Bg2 {[%emt 0:00:10]} Bg7 {[%emt 0:00:10]} 5. Nge2 {[%emt 0:46:00]} e6 {[%emt 0:00:57]} 6. O-O {[%emt 0:00:00]} Nge7 {[%emt 0:00:04]} 7. d3 {[%emt 0:00:00]} O-O {[%emt 0:00:12]} 8. Be3 {[%emt 0:00:00]} Nd4 {[%emt 0:00:09]} 9. f4 {[%emt 0:00:00]} d6 {[%emt 0:02:46]} 10. Qd2 {[%emt 0:00:00]} f5 {[%emt 0:00:49]} 11. Rae1 {[%emt 0:00:00]} Rb8 {[%emt 0:03:29]} 12. a4 {[%emt 0:00:00]} a6 {[%emt 0:01:51]} 13. Nb1 {[%emt 0:00:00]} b5 {[%emt 0:00:29]} 14. axb5 {[%emt 0:00:00]} Nxb5 {[%emt 0:10:22]} (14... axb5 {might be stronger.} 15. c3 Nxe2+ 16. Qxe2 b4) 15. c3 {[%emt 0:00:00]} Bb7 {[%emt 0:01:48]} 16. Qc2 {[%emt 0:00:00]} Qc7 {[%emt 0:01:37]} 17. Nd2 {[%emt 0:00:00]} Rbc8 {[%emt 0:01:33]} 18. Ra1 {[%emt 0:00:00]} Rfd8 {[%emt 0:02:51]} 19. Bf2 {[%emt 0:00:00]} d5 {[%emt 0:05:06]} 20. e5 {[%emt 0:00:00]} g5 {[%emt 0:04:05]} 21. Nb3 {[%emt 0:00:00]} d4 {[%emt 0:08:21]} 22. Bxb7 {[%emt 0:00:00]} Qxb7 {[%emt 0:00:04]} 23. Na5 {[%emt 0:00:00]} Qb6 $16 {[%emt 0:02:39]} 24. Nc4 {[%emt 0:00:00]} Qb7 {[%emt 0:00:05]} (24... Qc6 $14) 25. cxd4 {[%emt 0:00:00]} cxd4 {[%emt 0:00:49]} 26. Qb3 {[%emt 0:00:00]} Qf3 {[%emt 0:02:05]} (26... h6 $14) 27. Rfe1 {[%emt 0:00:00]} Nd5 {[%emt 0:01:41]} 28. Rxa6 {[%emt 0:00:00]} Ne3 {[%emt 0:00:34]} 29. Bxe3 {[%emt 0:03:29]} dxe3 30. Rf1 {[%emt 0:00:52]} Qxe2 {[%emt 0:00:02]} 31. Qxb5 {[%emt 0:00:06]} Qxd3 {[%emt 0:00:11]} 32. Rd6 {[%emt 0:01:23]} Rxd6 {[%emt 0:00:35]} 33. Nxd6 {[%emt 0:00:04]} Qxb5 {[%emt 0:00:06]} 34. Nxb5 {[%emt 0:00:01]} gxf4 {[%emt 0:00:08]} 35. gxf4 {[%emt 0:00:11]} Rb8 {[%emt 0:00:01]} 36. Nd4 {[%emt 0:00:08]} Rxb2 {[%emt 0:00:18]} 37. Nxe6 {[%emt 0:00:15]} Bh6 {[%emt 0:00:20]} 38. Nd4 {[%emt 0:01:35]} 1-0

[Event "Israeli Team U18-ch 2022"]
[Site "Be'er Ya'akov"]
[Date "2022.08.15"]
[Round "4.12"]
[White "Leib, Yoni"]
[Black "Amitai, Ido"]
[Result "1-0"]
[ECO "D45"]
[WhiteElo "1607"]
[BlackElo "1664"]
[Annotator "NA RC"]
[PlyCount "103"]
[EventDate "2022.08.14"]
[EventCountry "ISR"]
[SourceTitle "playchess.com"]
[Source "ChessBase"]
[SourceQuality "1"]
[TimeControl "3000+10"]

1. Nf3 {[%emt 0:00:10]} d5 {[%emt 0:00:10]} 2. e3 {[%emt 0:00:05]} Nf6 {[%emt 0:00:21]} 3. c4 {[%emt 0:00:06]} e6 {[%emt 0:00:11]} 4. b3 {[%emt 0:00:08]} Bd6 {[%emt 0:50:08]} 5. Bb2 {[%emt 0:00:17]} c6 {[%emt 0:00:00]} 6. Be2 {[%emt 0:00:14]} Nbd7 {[%emt 0:00:00]} 7. d4 {[%emt 0:00:33]} b6 {[%emt 0:00:00]} 8. O-O {[%emt 0:00:17]} O-O {[%emt 0:00:00]} 9. Nc3 {[%emt 0:01:31]} Bb7 {[%emt 0:00:00]} 10. Rc1 {[%emt 0:00:48]} Rc8 {[%emt 0:00:00]} 11. Nd2 {[%emt 0:00:53]} c5 {[%emt 0:00:00]} 12. dxc5 {[%emt 0:03:41]} bxc5 {[%emt 0:00:00]} 13. Re1 {[%emt 0:02:22]} Re8 {[%emt 0:00:00]} 14. Bf1 {[%emt 0:03:29]} Bb8 {[%emt 0:00:00]} 15. Ne2 {[%emt 0:06:55]} Ng4 {[%emt 0:00:00]} 16. g3 {[%emt 0:02:29]} dxc4 {[%emt 0:00:00]} 17. Nf4 {[%emt 0:04:08]} Nde5 {[%emt 0:00:00]} 18. Be2 {[%emt 0:03:56]} Nf6 {[%emt 0:00:00]} 19. Bxe5 {[%emt 0:00:56]} Bxe5 {[%emt 0:00:00]} 20. Nxc4 {[%emt 0:00:10]} Bxf4 {[%emt 0:00:00]} 21. exf4 {[%emt 0:00:51]} Qc7 {[%emt 0:00:00]} 22. Qd6 {[%emt 0:01:11]} Red8 {[%emt 0:00:00]} 23. Qxc7 {[%emt 0:00:33]} Rxc7 {[%emt 0:00:00]} 24. Ne5 {[%emt 0:01:12]} g6 {[%emt 0:00:00]} 25. Red1 {[%emt 0:00:49]} Rxd1+ {[%emt 0:00:08]} 26. Rxd1 {[%emt 0:00:25]} Bd5 {[%emt 0:00:01]} 27. Rc1 {[%emt 0:03:31]} Ne8 {[%emt 0:03:41]} 28. Ng4 {[%emt 0:03:05]} Kg7 {[%emt 0:00:00]} 29. Ne3 {[%emt 0:00:22]} Kf6 {[%emt 0:00:00]} 30. f3 {[%emt 0:00:56]} Ke7 {[%emt 0:00:00]} 31. Kf2 {[%emt 0:00:21]} Kd6 {[%emt 0:00:00]} 32. Bc4 {[%emt 0:00:58]} Rc6 {[%emt 0:00:00]} 33. g4 {[%emt 0:01:34]} h6 {[%emt 0:00:00]} 34. h4 {[%emt 0:01:29]} Rc7 {[%emt 0:00:12]} 35. g5 {[%emt 0:00:29]} h5 {[%emt 0:00:05]} 36. Rd1 {[%emt 0:00:12]} Kc6 {[%emt 0:00:35]} 37. Bxd5+ {[%emt 0:01:15]} exd5 {[%emt 0:00:01]} 38. Nxd5 {[%emt 0:00:04]} Rd7 {[%emt 0:00:04]} 39. Nc3 {[%emt 0:00:09]} Rxd1 {[%emt 0:00:02]} 40. Nxd1 {[%emt 0:00:01]} Nd6 {[%emt 0:00:01]} 41. Ne3 {[%emt 0:00:08]} c4 {[%emt 0:00:11]} 42. Nxc4 {[%emt 0:02:47]} Nxc4 {[%emt 0:00:01]} 43. bxc4 {[%emt 0:00:00]} Kc5 {[%emt 0:00:01]} 44. Ke3 {[%emt 0:00:02]} Kxc4 {[%emt 0:00:02]} 45. Ke4 {[%emt 0:00:15]} a5 {[%emt 0:00:30]} 46. f5 {[%emt 0:00:04]} a4 {[%emt 0:00:04]} 47. fxg6 {[%emt 0:00:12]} fxg6 {[%emt 0:00:02]} 48. f4 {[%emt 0:00:01]} a3 {[%emt 0:00:05]} 49. f5 {[%emt 0:00:02]} gxf5+ {[%emt 0:00:02]} 50. Kxf5 {[%emt 0:02:24]} Kc3 51. g6 {[%emt 0:00:00]} Kb2 {[%emt 0:00:01]} 52. g7 {[%emt 0:00:00]} 1-0

[Event "Israeli Team U18-ch 2022"]
[Site "Be'er Ya'akov"]
[Date "2022.08.15"]
[Round "4.13"]
[White "Zakin, Ilay"]
[Black "Aizenberg, Benny"]
[Result "0-1"]
[ECO "B45"]
[WhiteElo "1672"]
[BlackElo "2361"]
[Annotator "RC"]
[PlyCount "48"]
[EventDate "2022.08.14"]
[EventCountry "ISR"]
[SourceTitle "playchess.com"]
[Source "ChessBase"]
[SourceQuality "1"]
[TimeControl "3000+10"]

1. e4 {[%emt 0:00:02]} c5 {[%emt 0:00:02]} 2. Nf3 {[%emt 0:00:06]} e6 {[%emt 0:00:02]} 3. d4 {[%emt 0:00:06]} cxd4 {[%emt 0:00:01]} 4. Nxd4 {[%emt 0:00:08]} Nf6 {[%emt 0:00:03]} 5. Nc3 {[%emt 0:00:08]} Nc6 {[%emt 0:00:02]} 6. Nxc6 {[%emt 0:00:07]} bxc6 {[%emt 0:00:01]} 7. e5 {[%emt 0:00:11]} Nd5 {[%emt 0:00:02]} 8. Ne4 {[%emt 0:00:07]} Qc7 {[%emt 0:00:03]} 9. f4 {[%emt 0:00:08]} Rb8 {[%emt 0:00:01]} 10. c4 {[%emt 0:00:31]} Bb4+ {[%emt 0:00:04]} 11. Ke2 {[%emt 0:00:35]} O-O {[%emt 0:01:12]} 12. a3 {[%emt 0:05:36]} Be7 {[%emt 0:00:11]} 13. cxd5 {[%emt 0:17:58]} cxd5 {[%emt 0:00:04]} 14. Nd6 {[%emt 0:01:25]} Ba6+ {[%emt 0:02:23]} 15. Ke1 {[%emt 0:01:10]} f6 {[%emt 0:01:23]} 16. Bxa6 {[%emt 0:02:03]} fxe5 {[%emt 0:00:25]} 17. fxe5 {[%emt 0:00:20]} Qa5+ {[%emt 0:00:12]} 18. Qd2 {[%emt 0:00:29]} Qxa6 {[%emt 0:00:17]} 19. Qe2 {[%emt 0:00:20]} Qa4 {[%emt 0:01:49]} 20. Rf1 {[%emt 0:02:02]} Qd4 {[%emt 0:01:29]} 21. Qe3 {[%emt 0:03:04]} Rxf1+ {[%emt 0:00:12]} 22. Kxf1 {[%emt 0:00:10]} Qd1+ {[%emt 0:00:03]} 23. Kf2 {[%emt 0:01:18]} Bh4+ {[%emt 0:00:07]} 24. g3 {[%emt 0:01:05]} Rf8+ {[%emt 0:00:01]} 0-1

[Event "Israeli Team U18-ch 2022"]
[Site "Be'er Ya'akov"]
[Date "2022.08.15"]
[Round "4.14"]
[White "Sherman, Reem"]
[Black "Umanskiy, Stanislav"]
[Result "1/2-1/2"]
[ECO "C26"]
[WhiteElo "2071"]
[BlackElo "1642"]
[Annotator "TA"]
[PlyCount "71"]
[EventDate "2022.08.14"]
[EventCountry "ISR"]
[SourceTitle "playchess.com"]
[Source "ChessBase"]
[SourceQuality "1"]
[TimeControl "3000+10"]

{[%evp 12,71,20,-25,29,-8,49,11,18,31,65,-51,0,0,0,0,16,11,14,19,20,18,10,13,8,10,19,2,8,8,58,8,12,12,5,2,11,17,5,0,-9,-10,0,0,0,-60,-37,-50,-53,-106,-60,-70,-63,-78,-64,-73,-66,-72,-73,-71,-56,-103]} 1. e4 {[%emt 0:00:03]} e5 {[%emt 0:00:07]} 2. Nc3 {[%emt 0:00:29]} Nf6 {[%emt 0:00:16]} 3. g3 {[%emt 0:00:07]} Nc6 {[%emt 0:00:32]} 4. Bg2 {[%emt 0:00:11]} Bc5 {[%emt 0:01:23]} 5. Nge2 {[%emt 0:00:12]} O-O {[%emt 0:00:24]} 6. O-O {[%emt 0:00:21]} d6 {[%emt 0:00:46]} 7. h3 {[%emt 0:00:25]} Be6 {[%emt 0:00:54] C26: Vienna Game: 2...Nf6, sidelines .} (7... a5 $142) 8. d3 {[%emt 0:00:13]} h6 {[%emt 0:00:27]} (8... a5 $11) 9. Kh2 {[%emt 0:00:11]} d5 {[%emt 0:02:31] The position is equal.} 10. f4 {[%emt 0:07:49] [#] Hoping for fxe5.} dxe4 {[%emt 0:04:06] [#]} 11. dxe4 $146 {[%emt 0:00:45]} (11. fxe5 $1 $14 Nxe5 12. Rxf6 Bxh3 13. Rf1 (13. Bxh3 Qxf6 14. Nxe4 Qc6 $14) (13. Nxe4 Ng4+ 14. Kxh3 Qc8 $14) 13... Bxg2 14. Kxg2 exd3 15. cxd3 Qxd3 16. Bf4) ({Predecessor:} 11. fxe5 Nxe5 12. Nxe4 Nxe4 13. Bxe4 Nc6 14. Nf4 Bd7 15. Qh5 Qg5 16. Qxg5 hxg5 17. Nd5 {½-½ (82) Gabrielian,A (2463)-Fus,J (2370) Chess.com INT 2020}) 11... Qe7 {[%emt 0:05:11]} (11... Qxd1 $15 12. Rxd1 Nb4) 12. Nd5 $11 {[%emt 0:05:33]} Bxd5 {[%emt 0:01:48]} 13. exd5 {[%emt 0:00:05]} Nd4 {[%emt 0:00:48]} 14. fxe5 {[%emt 0:05:11]} (14. Nc3 {keeps more tension.} e4 15. Re1 Nf5 16. Nxe4 Rfe8 17. Bd2) 14... Qxe5 {[%emt 0:01:26]} 15. Nxd4 {[%emt 0:00:00]} Qxd4 {[%emt 0:00:44]} 16. Qxd4 {[%emt 0:02:25]} Bxd4 {[%emt 0:01:06]} 17. Bf4 {[%emt 0:00:39]} Rac8 {[%emt 0:05:03]} 18. c3 {[%emt 0:00:11]} Bc5 {[%emt 0:00:46]} 19. Bxh6 {[%emt 0:02:44]} Rfe8 {[%emt 0:04:34][%cal Bf8e8,Be8e2,Be2c2][%mdl 32]} 20. Bg5 {[%emt 0:07:44]} Nh7 {[%emt 0:02:05]} (20... Re2 $11) 21. Bf4 {[%emt 0:03:10]} (21. Bc1 $1 $14) 21... Re2 {[%emt 0:01:16]} 22. b4 {[%emt 0:01:10]} Bd6 {[%emt 0:01:38]} 23. Kg1 {[%emt 0:01:38]} Rc2 {[%emt 0:05:20]} 24. Rfc1 {[%emt 0:04:41]} Rb2 {[%emt 0:02:12]} 25. Bxd6 {[%emt 0:00:36]} cxd6 {[%emt 0:00:09]} 26. a3 {[%emt 0:00:59]} Rc4 {[%emt 0:01:35]} 27. Bf1 {[%emt 0:00:42]} Ng5 {[%emt 0:02:49] [#] ( -> ...Nf3+)} 28. Bg2 {[%emt 0:01:15] Against Nf3+} (28. Bxc4 $11 Nf3+ 29. Kf1 Nh2+ 30. Kg1 Nf3+ 31. Kf1 Nh2+ 32. Kg1 Nf3+) 28... Rb3 {[%emt 0:01:31]} 29. h4 {[%emt 0:00:48]} Nh7 {[%emt 0:00:31]} 30. Re1 {[%emt 0:01:48]} (30. Kf2 $15) 30... Rcxc3 {[%emt 0:01:16]} (30... Nf6 $17 31. Rac1 Kf8) 31. Re8+ $15 {[%emt 0:00:01]} Nf8 {[%emt 0:00:03]} 32. Rae1 {[%emt 0:02:08]} Rxg3 {[%emt 0:00:20]} 33. R1e2 $1 {[%emt 0:00:03] Prevents Rb2.} Rxa3 {[%emt 0:02:03]} 34. Rd8 {[%emt 0:00:14]} Rae3 {[%emt 0:00:00]} 35. Rc2 {[%emt 0:00:43]} Rc3 {[%emt 0:00:00]} 36. Re2 {[%emt 0:00:01] Weighted Error Value: White=0.21 (precise) /Black=0.19 (very precise)} (36. Rxc3 $15 Rxc3 37. h5) 1/2-1/2